Cogmind - Beta 15 @@@ ROGUE MODE // 2025.05.28 @ 02:10:52 Player: Lillith Result: Destroyed by GK-LAR(R) with Subdweller Machine Gun Performance ------------- Evolutions (0) 0 Regions Visited (2) 400 Robots Destroyed (14) 70 Value Destroyed (311) 311 Prototype IDs (0) 0 Alien Tech Used (0) 0 Bonus (0) 0 TOTAL SCORE: 781 Bonus ------- None Cogmind --------- Core Integrity 0/250 Matter 249/300 Energy 125/125 System Corruption 0% Temperature Cool (0) Movement Rolling (117) Ox1 Location -10/Subcaves Parts ------- > --- POWER (1) -------- Light Ion Engine > --- PROPULSION (2) --- Compact Wheel Subdweller Monowheel > --- UTILITY (2) ------ Disposable Heat Sink High-capacity Storage Unit > --- WEAPON (2) ------- Light Cannon Light Cannon > --- INVENTORY (20) --- Ion Engine Light Treads Light Treads Subdweller Optics Improved Terrain Scanner Assault Rifle Barrage Gun Welding Torch Hammer Peak State ------------ > --- POWER ------------ Ion Engine > --- PROPULSION ------- Compact Wheel Compact Wheel > --- UTILITY ---------- High-capacity Storage Unit Seismic Detector > --- WEAPON ----------- Barrage Gun Light Cannon > --- INVENTORY -------- Light Ion Engine Light Treads Light Treads Compact Wheel Improved Terrain Scanner Assault Rifle Light Cannon Light Cannon Welding Torch Hammer [Rating: 10] Favorites ----------- Power Ion Engine Engine Ion Engine Propulsion Light Treads Treads Light Treads Wheel Compact Wheel Utility High-capacity Storage Unit Device Disposable Heat Sink Storage High-capacity Storage Unit Weapon Light Cannon Ballistic Gun Assault Rifle Ballistic Cannon Light Cannon Impact Weapon Hammer Build | -11 -10 -10 ------- Run | Yrd Mat Sub Slots Evolved . | . . . Power . | . . . Propulsion . | . . . Utility . | . . . Weapon . | . . . Parts Attached 20 | 8 7 5 Power 2 | 2 . . Engine 2 | 2 . . Core . | . . . Reactor . | . . . Propulsion 6 | 2 2 2 Treads 2 | 2 . . Leg . | . . . Wheel 4 | . 2 2 Hover . | . . . Flight . | . . . Utility 5 | 2 2 1 Device 3 | 1 1 1 Storage 2 | 1 1 . Processor . | . . . Hackware . | . . . Protection . | . . . Artifact . | . . . Weapon 7 | 2 3 2 Energy Gun . | . . . Energy Cannon . | . . . Ballistic Gun 3 | 2 . 1 Ballistic Cannon 3 | . 2 1 Launcher . | . . . Special Weapon . | . . . Impact Weapon 1 | . 1 . Slashing Weapon . | . . . Piercing Weapon . | . . . Special Melee Weapon . | . . . Unidentified Prototypes . | . . . Parts Lost 5 | . . 5 Power 1 | . . 1 Propulsion 2 | . . 2 Utility 1 | . . 1 Weapon 1 | . . 1 Highest Loss Streak 3 | . . 3 To Critical Strikes . | . . . Average Backups 7 | 3 6 9 Power . | . 1 . Propulsion 2 | 1 2 2 Utility . | . 1 1 Weapon 2 | . 1 3 Tool/Special . | . . . Unused Backups 4 | . 1 3 Power 1 | . . 1 Propulsion . | . . . Utility 1 | . . 1 Weapon 1 | . 1 . Tool/Special 1 | . . 1 Average Slot Usage (%) 98 | . 99 97 Engine 13 | . 14 13 Treads 10 | . 23 . Wheel 16 | . 4 26 Device 13 | . 13 13 Storage 14 | . 14 14 Ballistic Gun 9 | . 20 . Ballistic Cannon 14 | . 1 25 Impact Weapon 4 | . 6 2 Peak Build Rating 10 | 7 9 10 Average Rating 8 | 5 8 9 On Entrance 5 | . 7 8 Naked Turns . | . . . Heaviest Build 52 | 14 52 52 Greatest Support 40 | 40 40 36 Greatest Overweight (x) 3 | 3 1 2 Average Overweight (x) . | . . 1 Largest Inventory Capacity 20 | 8 20 20 Average Capacity 15 | 7 10 20 Most Carried 10 | 5 9 10 Average Carried 7 | 3 6 9 Final Capacity 20 | 8 20 20 Final Carried 9 | 5 9 9 Class Distribution -------------------- 100% | Mutant Dominant Class ---------------- Mutant | -10/Materials Mutant | -10/Subcaves Resources | -11 -10 -10 ----------- Run | Yrd Mat Sub Matter Collected 708 | 265 149 294 Remotely . | . . . Salvage Created 313 | 24 136 153 Parts 25 | 4 10 11 Haulers Intercepted 1 | . 1 . Recyclers Shooed . | . . . Parts Field Recycled . | . . . Retrieved Matter . | . . . Parts Self-Destructed 10 | . . 10 Prevented . | . . . Kills | -11 -10 -10 ------- Run | Yrd Mat Sub Combat Hostiles Destroyed 12 | . 6 6 Guns 6 | . 6 . Cannons 6 | . . 6 Classes Destroyed 5 | 1 2 2 Tunneler 1 | 1 . . Hauler 1 | . 1 . Swarmer 6 | . 6 . Grunt 4 | . . 4 Subdweller 2 | . . 2 Best Kill Streak 7 | 1 7 2 Combat Bots Only 6 | . 6 2 Max Kills in Single Turn 1 | 1 1 1 Gunslinging . | . . . Exploded . | . . . Melee . | . . . Uniques/NPCs Destroyed . | . . . Combat | -11 -10 -10 -------- Run | Yrd Mat Sub Hostile Shots Fired 98 | . 48 50 Missed 24 | . 14 10 Hits 74 | . 34 40 Projectile 74 | . 34 40 Critical Strikes 1 | . . 1 Damage Taken 1022 | . 278 744 Core 254 | . 57 197 Absorbed by Shields . | . . . Regen/Repaired (Parts) 19 | . 19 . Core Remaining (%) 100 | 100 . . Volleys Fired 54 | 6 21 27 Largest 2 | 2 2 2 Hottest 60 | 40 40 60 Shots Fired 108 | 12 42 54 Gun 61 | 12 42 7 Cannon 47 | . . 47 Launcher . | . . . Special . | . . . Kinetic 108 | 12 42 54 Thermal . | . . . Explosive . | . . . Electromagnetic . | . . . Robot Hit Streak 19 | 2 5 19 Robot Miss Streak 4 | 3 4 1 Penetration Max . | . . . Secondary Targets 3 | . 3 . Max Gunslinging Chain 1 | . 1 . Shots Hit Robots 70 | 4 21 45 Core Hits 21 | 1 9 11 Critical Kills . | . . . Critical Parts Destroyed . | . . . Critical Strikes 1 | . . 1 Blast 1 | . . 1 Melee Attacks 13 | . 12 1 Impact 13 | . 12 1 Slashing . | . . . Piercing . | . . . Sneak Attacks . | . . . Combat Hostiles . | . . . Follow-up Attacks . | . . . Damage Inflicted 1051 | 42 218 791 Guns 383 | 42 218 123 Cannons 668 | . . 668 Explosions . | . . . Melee . | . . . Ramming . | . . . Kinetic 1051 | 42 218 791 Thermal . | . . . Explosive . | . . . Electromagnetic . | . . . Impact . | . . . Slashing . | . . . Piercing . | . . . Highest Corruption . | . . . Average Corruption . | . . . Corruption Purged . | . . . Corruption Blocked . | . . . Overload Shots . | . . . Overflow Damage . | . . . Projectiles . | . . . Explosions . | . . . Melee . | . . . Knockbacks 7 | . . 7 Impact . | . . . Kinetic 7 | . . 7 Secondary . | . . . Self-Inflicted Damage . | . . . Shots . | . . . Rammed . | . . . Targets Rammed . | . . . Kicked . | . . . Crushed . | . . . Highest Temperature 7 | . . 7 Average Temperature 7 | . . 7 Received Heat Transfer 201 | . . 201 Siege Activations . | . . . Martial Activations . | . . . Shielding Activations . | . . . Robots Disrupted . | . . . Combat Hostiles . | . . . Robots Corrupted . | . . . Combat Hostiles . | . . . Parts Fried . | . . . Impact Corruptions . | . . . Robots Melted . | . . . Combat Hostiles . | . . . Parts Melted . | . . . Heat Transferred . | . . . Parts Sabotaged . | . . . Parts Stolen . | . . . Parts Stripped . | . . . Power Chain Reactions . | . . . Alert | -11 -10 -10 ------- Run | Yrd Mat Sub Maximum Alert Level . | . . . Low Security (%) 100 | 100 100 . Level 1 . | . . . Level 2 . | . . . Level 3 . | . . . Level 4 . | . . . Level 5 . | . . . High Security . | . . . Max Security . | . . . Peak Influence 132 | 5 132 . Initial . | . . . Average 32 | . 38 . Influence Increases 295 | 5 190 100 Destroy 0b10 Robot/C 200 | . 120 80 Destroy 0b10 Robot/NC 10 | 5 5 . Destroy Leader 42 | . 22 20 Successful Hack 8 | . 8 . Destroy Structure 5 | . 5 . Lose Combat Pursuer 30 | . 30 . Influence Decreases 295 | 5 190 100 Time Decay 295 | 5 190 100 Squads Dispatched . | . . . Investigation . | . . . Extermination . | . . . Reinforcement . | . . . Assault . | . . . Garrison . | . . . Intercept . | . . . Searches Triggered . | . . . Construction Impeded . | . . . Haulers Reinforced . | . . . Active Scanning Responses . | . . . Cargo Convoy Interrupts . | . . . Stealth | -11 -10 -10 --------- Run | Yrd Mat Sub Distress Signals 1 | . 1 . Communications Jammed . | . . . Distress Signals . | . . . Times Spotted 20 | . 13 7 Peak Tracking Total 6 | . 6 2 Tactical Retreats 3 | . 3 . Traps | -11 -10 -10 ------- Run | Yrd Mat Sub Traps Triggered . | . . . Indirectly . | . . . Trap Hack Attempts . | . . . Triggered . | . . . Disarmed . | . . . Reprogrammed . | . . . Reused . | . . . Traps Extracted . | . . . Installed . | . . . Triggered . | . . . Machines | -11 -10 -10 ---------- Run | Yrd Mat Sub Machines Disabled . | . . . Max in Single Turn . | . . . Machines Repaired . | . . . Machines Dismantled . | . . . Machines Sabotaged . | . . . Overloaded Fab Kills . | . . . Hacking | -11 -10 -10 --------- Run | Yrd Mat Sub Machines Accessed 3 | . 3 . Terminals 2 | . 2 . Fabricators . | . . . Repair Stations 1 | . 1 . Recycling Units . | . . . Scanalyzers . | . . . Garrison Access . | . . . Total Hacks 5 | . 5 . Successful 4 | . 4 . Failed 1 | . 1 . Catastrophic 1 | . 1 . Database Lockouts . | . . . Manual 1 | . 1 . Terminals 3 | . 3 . Fabricators . | . . . Repair Stations 2 | . 2 . Recycling Units . | . . . Scanalyzers . | . . . Garrison Access . | . . . Terminal Hacks 2 | . 2 . Locate Traps 1 | . 1 . Zone Layout 1 | . 1 . Fabricator Hacks . | . . . Repair Station Hacks 2 | . 2 . Scan Component 1 | . 1 . Repair 1 | . 1 . Recycling Unit Hacks . | . . . Scanalyzer . | . . . Garrison Access Hacks . | . . . Unauthorized Hacks . | . . . Terminals . | . . . Fabricators . | . . . Repair Stations . | . . . Recycling Units . | . . . Scanalyzers . | . . . Garrison Access . | . . . Data Cores Recovered . | . . . Used . | . . . Hacking Detections 1 | . 1 . Full Trace Events . | . . . Feedback Events . | . . . Feedback Blocked . | . . . Robot Schematics Acquired . | . . . Robots Built . | . . . Authchips . | . . . Time . | . . . Total Robot Build Rating . | . . . Part Schematics Acquired . | . . . Parts Built . | . . . Authchips . | . . . Time . | . . . Total Part Build Rating . | . . . Parts Repaired 1 | . 1 . Time 26 | . 26 . Parts Recycled . | . . . Recycled Matter . | . . . Retrieved Matter . | . . . Retrieved Components . | . . . Parts Scanalyzed . | . . . Part Schematics Acquired . | . . . Parts Damaged . | . . . Bothacking | -11 -10 -10 ------------ Run | Yrd Mat Sub Used RIF Installer . | . . . Robots Hacked . | . . . Non-combat . | . . . Combat . | . . . Robot Hacks Applied . | . . . Relay Couplers Released . | . . . Fabnet Peak Effective % . | . . . Robots Rewired . | . . . Allies Hacked . | . . . Hacks Repelled . | . . . Allies | -11 -10 -10 -------- Run | Yrd Mat Sub Total Allies . | . . . Largest Group . | . . . Highest-Rated Group . | . . . Highest-Rated Ally . | . . . Total Orders . | . . . Ally Attacks . | . . . Total Damage . | . . . Kills . | . . . Allies Corrupted . | . . . Allies Melted . | . . . Intel | -11 -10 -10 ------- Run | Yrd Mat Sub Active Infowar (turns) 792 | 39 576 177 Terrain 288 | . 288 . Seismic 504 | 39 288 177 Robot Analysis Total . | . . . Derelict Logs Recovered . | . . . Drone Launches . | . . . Drone Recoveries . | . . . Exploration | -11 -10 -10 ------------- Run | Yrd Mat Sub Turns Passed 1495 | 125 607 763 Spaces Moved 889 | 67 289 533 Core 21 | 21 . . Treads 282 | 46 231 5 Legs . | . . . Wheels 586 | . 58 528 Hover . | . . . Flight . | . . . Fastest Speed 50 | 50 115 115 Average Speed 130 | 139 151 118 Slowest Speed 320 | 200 240 320 Overloaded Moves . | . . . Propulsion Burnouts . | . . . Robots Hopped . | . . . Potential Cave-ins . | . . . Cave-ins Triggered . | . . . Exploration Rate (%) 25 | 4 39 32 Regions Visited 2 Branch Regions 1 Pre-discovered Areas . | . . . Known Exits Taken . | . . . Unknown Exits Taken 2 | 1 1 . Scrap Searched 1 | . . 1 Spaces Dug 5 | . 5 . Terrain Destroyed 5 | . 5 . Melee 5 | . 5 . Projectile . | . . . AOE . | . . . Terrain Rammed . | . . . Walls Destroyed . | . . . Machines Disabled . | . . . Actions | -11 -10 -10 --------- Run | Yrd Mat Sub Total 1086 | 84 396 606 Wait 90 | . 57 33 Move 887 | 66 288 533 Hop . | . . . Pick Up 13 | 4 6 3 Fast Attach 10 | 7 1 2 Attach 3 | . . 3 Detach . | . . . Swap 13 | 1 8 4 Drop 3 | . 3 . Fire 54 | 6 21 27 Melee 13 | . 12 1 Ram . | . . . Kick . | . . . Crush . | . . . Escape Stasis . | . . . Rewire . | . . . Trap . | . . . Miscellaneous . | . . . Route ------- -11/Scrapyard -10/Materials (discovered 2 exits: [*Mat] / [*Sub]) -10/Subcaves (discovered 1 exit: [*Mat]) History --------- Turn | Location | Event 7 | -11/Scrapyard | Discovered new exit (range 15) 126 | -11/Scrapyard | Entered Materials 317 | -10/Materials | Build established: Mutant 599 | -10/Materials | Discovered new exit (range 7) 626 | -10/Materials | Derelicts attacked the area 675 | -10/Materials | Repaired Seismic Detector 724 | -10/Materials | Discovered new exit (range 6) 733 | -10/Materials | Entered Subcaves 734 | -10/Subcaves | Approached by a straggling Scientist 929 | -10/Subcaves | Core integrity fell below 50% 941 | -10/Subcaves | Lost 3 parts (1p1n1u) 1010 | -10/Subcaves | A swath of the cavern ceiling suddenly collapsed 1282 | -10/Subcaves | Discovered new exit (range 5) 1375 | -10/Subcaves | Core integrity fell below 20% 1496 | -10/Subcaves | Destroyed by GK-LAR(R) with Subdweller Machine Gun Last Messages --------------- 01325_ Lgt. Cannon destroyed. 01335_ G-47 Trooper destroyed. 01344_ Acquired 7 matter. 01352_ G-34 Mercenary destroyed. 01355_ Acquired 40 matter. 01358_ Ion Engine fries itself beyond repair. 01358_ Aluminum Leg fries itself beyond repair. 01366_ Sml. Laser fries itself beyond repair. 01374_ Tech Extrapolator violently self-destructs. 01374_ Acquired 18 matter. 01380_ Subatomizers dissect the Sub. Power Source. 01446_ Acquired Sub. Optics. 01487_ GK-LAR(R) knocked back. 01488_ ZV-AWA(z): "She is not going to be happy we haven't found any suitable candidates yet." 01490_ GK-LAR(R) Disposable Heat Sink blasted off. 01492_ S8-OUT(O) collects matter. Map ----- +----------------------------------------------------+ | ???????????????## ### #???????????? | | ???????????????# #???????????? | | ???????????????# ####???????????? | | ???????????????# #??????????????? | | ???????????????# ##??????????????? | | ??????????????# ### #???????????????? | | ??????????????# ???## ##??????????????? | | ??????????????# ?????## ##?????????????? | | ??????????????????????# ##????????????? | | ??????????????????????# #????????????? | | ??????????????????????# #????????????? | | ???????????????######## #????????????? | | ???????????????# ##????????????? | | ???????????????# ##?????????????? | | ???????????????# ###?# ???????????? | | ???????????????# ##?? ????????????? | | ???????????????# ###?? ????????????? | | ???????????????# ##??? #?????????????? | | ???????????????# #??? #?????????????? | | ?????????????### #??# ##????????????? | | ?????????????# #" ##?# ##???????????? | | ?????????????# ### ##??????????? | | ?????????????# #" R% z #??????????? | | ????????????& "## O % #???????????? | | ???????????###?## ## ???????? | | ???????????????#@ ###??? ????????? | | ???????????????## #???????? ????????? | | ????????????????####????????????????????? | | ????????????????????????????????????????? | | ????????????????????????????????????????? | | ????????????????????????????????????????? | | ????????????????????????????????????????? | | ????????????????????????????????????????? | | ????????????????????????????????????????? | | ????????????????????????????????????????? | | ????????????????????????????????????????? | | ????????????????????????????????????????? | | ????????????????????????????????????????? | | ????????????????????????????????????????? | | ????????????????????????????????????????? | | ????????????????????????????????????????? | | ????????????????????????????????????????? | | ????????????????????????????????????????? | | ????????????????????????????????????????? | | ????????????????????????????????????????? | | ????????????????????????????????????????? | | ????????????????????????????????????????? | | ????????????????????????????????????????? | | | | | +----------------------------------------------------+ Best States ------------- Heat Dissipation 25 Coolant Potential 50 Energy Generation 10 Energy Capacity 250 Matter Stores 300 Matter Capacity 300 Sight Range 16 Terrain Scan Range 16 Terrain Scan Density 10 Evasion (%) 40 Recoil Reduction 2 Item Schematics ----------------- None Robot Schematics ------------------ None Fabricated ------------ Nothing Repaired ---------- Seismic Detector | 5% | -10/Materials Alien Tech Used ----------------- None Achievements -------------- None Challenges ------------ None Game ------ Seed AlphaKineticCrosscalibrator Manual? 0 Play Time 00:11:57 Cumulative 52.8 hours Start 2025.05.28 @ 02:00:35 End 2025.05.28 @ 02:10:52 Sessions 1 Manual Loads 0 Difficulty Rogue Special Mode None Game No. 95 Rogue 95 Adventurer 0 Explorer 0 Win Type - Total 0 Types 0/0/0/0/0/0/0/0/0/0 Lore% 45 Gallery% 32 Achievement% 30 Wizard Run 0 Options --------- Layout 2 ASCII 0 Keyboard 1 Movement Arrows Keybinds 0 Fullscreen 2 Font 32/SmallcapsGlow Map View 50x44 Zoom Use 0% Tactical HUD 1 Map Filters NONE Filters NONE Steam 1 RUN: 8cf94156-a2ba-4e3c-95d7-3b770fc39353